Cogmind - Beta 16 @@@ ROGUE MODE // 2026.01.17 @ 15:40:55 Player: Ragonath Result: Destroyed by G-34 Mercenary with Small Laser Performance ------------- Evolutions (0) 0 Regions Visited (1) 200 Robots Destroyed (18) 90 Value Destroyed (440) 440 Prototype IDs (2) 40 Alien Tech Used (0) 0 Bonus (0) 0 TOTAL SCORE: 770 Bonus ------- None Cogmind --------- Core Integrity 0/250 Matter 267/300 Energy 100/100 System Corruption 0% Temperature Cool (6) Movement Treading (160) Location -10/Materials Parts ------- > --- POWER (1) -------- (None) > --- PROPULSION (2) --- Improved Treads Improved Treads > --- UTILITY (2) ------ Power Shielding Hacking Suite > --- WEAPON (2) ------- Particle Gun Grenade Launcher > --- INVENTORY (5) ---- Light Assault Rifle Datajack Peak State ------------ > --- POWER ------------ (None) > --- PROPULSION ------- Improved Treads Improved Treads > --- UTILITY ---------- Power Shielding Hacking Suite > --- WEAPON ----------- Particle Gun Grenade Launcher > --- INVENTORY -------- Light Assault Rifle Datajack [Rating: 11] Favorites ----------- Power Ion Engine Engine Ion Engine Propulsion Improved Treads Treads Improved Treads Wheel Wheel Utility Hacking Suite Device Seismic Detector Hackware Hacking Suite Protection Power Shielding Weapon Light Assault Rifle Energy Gun Particle Gun Ballistic Gun Light Assault Rifle Launcher Grenade Launcher Build | -11 -10 ------- Run | Yrd Mat Slots Evolved . | . . Power . | . . Propulsion . | . . Utility . | . . Weapon . | . . Parts Attached 14 | 6 8 Power 1 | 1 . Engine 1 | 1 . Core . | . . Reactor . | . . Propulsion 5 | 3 2 Treads 4 | 2 2 Leg . | . . Wheel 1 | 1 . Hover . | . . Flight . | . . Utility 3 | . 3 Device 1 | . 1 Storage . | . . Processor . | . . Hackware 1 | . 1 Protection 1 | . 1 Artifact . | . . Weapon 5 | 2 3 Energy Gun 1 | . 1 Energy Cannon . | . . Ballistic Gun 3 | 2 1 Ballistic Cannon . | . . Launcher 1 | . 1 Special Weapon . | . . Impact Weapon . | . . Slashing Weapon . | . . Piercing Weapon . | . . Special Melee Weapon . | . . Unidentified Prototypes . | . . Parts Lost 5 | . 5 Power 1 | . 1 Propulsion 1 | . 1 Utility 1 | . 1 Weapon 2 | . 2 Highest Loss Streak 3 | . 3 To Critical Strikes . | . . Average Backups 2 | 2 2 Power . | . . Propulsion . | 1 . Utility . | . . Weapon 1 | . 1 Tool/Special . | . . Unused Backups 4 | 2 2 Power . | . . Propulsion 2 | 2 . Utility . | . . Weapon 1 | . 1 Tool/Special 1 | . 1 Average Slot Usage (%) 71 | . 71 Engine 6 | . 6 Treads 26 | . 26 Device 2 | . 2 Hackware 6 | . 6 Protection 3 | . 3 Energy Gun 7 | . 7 Ballistic Gun 10 | . 10 Launcher 6 | . 6 Peak Build Rating 11 | 5 11 Average Rating 7 | 2 7 On Entrance 2 | . 5 Avg Prop Armor Cover (%) . | . . Naked Turns . | . . Heaviest Build 8 | 7 8 Greatest Support 46 | 40 46 Greatest Overweight (x) 1 | . 1 Average Overweight (x) . | . . Largest Inventory Capacity 5 | 5 5 Average Capacity 5 | 5 5 Most Carried 5 | 5 5 Average Carried 2 | 2 2 Final Capacity 5 | 5 5 Final Carried 2 | 2 2 Class Distribution -------------------- 100% | Mutant Dominant Class ---------------- Mutant | -10/Materials Resources | -11 -10 ----------- Run | Yrd Mat Matter Collected 494 | 239 255 Remotely . | . . Salvage Created 477 | . 477 Parts 36 | . 36 Haulers Intercepted . | . . Recyclers Shooed . | . . Parts Field Recycled . | . . Retrieved Matter . | . . Parts Self-Destructed . | . . Prevented . | . . Parts Restored . | . . Kills | -11 -10 ------- Run | Yrd Mat Combat Hostiles Destroyed 15 | . 15 Guns 11 | . 11 AOE 4 | . 4 Classes Destroyed 4 | . 4 Operator 1 | . 1 Watcher 2 | . 2 Swarmer 6 | . 6 Grunt 9 | . 9 Best Kill Streak 4 | . 4 Combat Bots Only 3 | . 3 Max Kills in Single Turn 1 | . 1 Gunslinging . | . . Exploded 1 | . 1 Melee . | . . Uniques/NPCs Destroyed . | . . Combat | -11 -10 -------- Run | Yrd Mat Hostile Shots Fired 127 | . 127 Missed 27 | . 27 Hits 100 | . 100 Projectile 100 | . 100 Critical Strikes 2 | . 2 Damage Taken 1024 | . 1024 Core 259 | . 259 Absorbed by Shields . | . . Core Remaining (%) 100 | 100 . Volleys Fired 70 | . 70 Largest 2 | . 2 Hottest 85 | . 85 Shots Fired 104 | . 104 Gun 95 | . 95 Cannon . | . . Launcher 9 | . 9 Special . | . . Kinetic 92 | . 92 Thermal 3 | . 3 Explosive 9 | . 9 Electromagnetic . | . . Robot Hit Streak 12 | . 12 Robot Miss Streak 4 | . 4 Penetration Max . | . . Secondary Targets . | . . Shots Hit Robots 58 | . 58 Core Hits 34 | . 34 Critical Kills . | . . Critical Parts Destroyed . | . . Critical Strikes . | . . Melee Attacks . | . . Impact . | . . Slashing . | . . Piercing . | . . Sneak Attacks . | . . Combat Hostiles . | . . Follow-up Attacks . | . . Damage Inflicted 682 | . 682 Guns 442 | . 442 Cannons . | . . Explosions 236 | . 236 Melee . | . . Ramming 4 | . 4 Kinetic 428 | . 428 Thermal 14 | . 14 Explosive 236 | . 236 Electromagnetic . | . . Impact . | . . Slashing . | . . Piercing . | . . Highest Corruption . | . . Average Corruption . | . . Corruption Purged . | . . Corruption Blocked . | . . Overload Shots . | . . Overflow Damage . | . . Projectiles . | . . Explosions . | . . Melee . | . . Knockbacks . | . . Impact . | . . Kinetic . | . . Secondary . | . . Self-Inflicted Damage . | . . Shots . | . . Rammed 2 | . 2 Targets Rammed 2 | . 2 Kicked . | . . Crushed . | . . Highest Temperature 68 | . 68 Average Temperature 13 | . 13 Received Heat Transfer 366 | . 366 Siege Activations . | . . Martial Activations . | . . Shielding Activations . | . . Robots Disrupted . | . . Combat Hostiles . | . . Robots Corrupted . | . . Combat Hostiles . | . . Parts Fried . | . . Impact Corruptions . | . . Robots Melted . | . . Combat Hostiles . | . . Parts Melted . | . . Heat Transferred 37 | . 37 Parts Sabotaged . | . . Parts Stolen . | . . Parts Stripped . | . . Power Chain Reactions . | . . Alert | -11 -10 ------- Run | Yrd Mat Maximum Alert Level . | . . Low Security (%) 100 | 100 100 Level 1 . | . . Level 2 . | . . Level 3 . | . . Level 4 . | . . Level 5 . | . . High Security . | . . Max Security . | . . Peak Influence 90 | . 90 Initial . | . . Average 24 | . 26 Influence Increases 431 | . 431 Destroy 0b10 Robot/C 300 | . 300 Destroy 0b10 Robot/NC 15 | . 15 Destroy Leader 74 | . 74 Successful Hack 9 | . 9 Destroy Structure 33 | . 33 Influence Decreases 425 | . 425 Time Decay 317 | . 317 Lost Part 50 | . 50 Purge Threat 58 | . 58 Squads Dispatched 4 | . 4 Investigation 2 | . 2 Extermination . | . . Reinforcement 2 | . 2 Assault . | . . Garrison . | . . Intercept . | . . Searches Triggered . | . . Construction Impeded . | . . Haulers Reinforced . | . . Active Scanning Responses . | . . Cargo Convoy Interrupts . | . . Stealth | -11 -10 --------- Run | Yrd Mat Distress Signals . | . . Communications Jammed . | . . Distress Signals . | . . Times Spotted 26 | . 26 Peak Tracking Total 4 | . 4 Tactical Retreats . | . . Traps | -11 -10 ------- Run | Yrd Mat Traps Triggered 3 | . 3 Indirectly . | . . Trap Hack Attempts . | . . Triggered . | . . Disarmed . | . . Reprogrammed . | . . Reused . | . . Traps Extracted . | . . Installed . | . . Triggered . | . . Machines | -11 -10 ---------- Run | Yrd Mat Machines Disabled . | . . Max in Single Turn . | . . Machines Repaired . | . . Machines Dismantled . | . . Machines Sabotaged . | . . Overloaded Fab Kills . | . . Hacking | -11 -10 --------- Run | Yrd Mat Machines Accessed 6 | . 6 Terminals 5 | . 5 Fabricators . | . . Repair Stations . | . . Recycling Units 1 | . 1 Scanalyzers . | . . Garrison Access . | . . Total Hacks 16 | . 16 Successful 12 | . 12 Failed 4 | . 4 Catastrophic . | . . Database Lockouts . | . . Manual . | . . Terminals 12 | . 12 Fabricators . | . . Repair Stations . | . . Recycling Units 4 | . 4 Scanalyzers . | . . Garrison Access . | . . Terminal Hacks 9 | . 9 Record 4 | . 4 Prototype ID Bank 1 | . 1 Alert Level 1 | . 1 Unreport Threat 1 | . 1 Recall Investigation 1 | . 1 Registered Components 1 | . 1 Fabricator Hacks . | . . Repair Station Hacks . | . . Recycling Unit Hacks 3 | . 3 Recycle Component 2 | . 2 Process 1 | . 1 Scanalyzer . | . . Garrison Access Hacks . | . . Unauthorized Hacks . | . . Terminals . | . . Fabricators . | . . Repair Stations . | . . Recycling Units . | . . Scanalyzers . | . . Garrison Access . | . . Data Cores Recovered . | . . Used . | . . Hacking Detections 5 | . 5 Full Trace Events . | . . Feedback Events . | . . Feedback Blocked . | . . Robot Schematics Acquired . | . . Robots Built . | . . Authchips . | . . Time . | . . Total Robot Build Rating . | . . Part Schematics Acquired . | . . Parts Built . | . . Authchips . | . . Time . | . . Total Part Build Rating . | . . Part Studies Acquired . | . . Parts Repaired . | . . Time . | . . Parts Recycled 2 | . 2 Recycled Matter 95 | . 95 Retrieved Matter . | . . Retrieved Components . | . . Parts Scanalyzed . | . . Part Schematics Acquired . | . . Parts Damaged . | . . Bothacking | -11 -10 ------------ Run | Yrd Mat Used RIF Installer . | . . Robots Hacked . | . . Non-combat . | . . Combat . | . . Robot Hacks Applied . | . . Relay Couplers Released . | . . Fabnet Peak Effective % . | . . Robots Rewired . | . . Allies Hacked . | . . Hacks Repelled . | . . Allies | -11 -10 -------- Run | Yrd Mat Total Allies . | . . Largest Group . | . . Highest-Rated Group . | . . Highest-Rated Ally . | . . Total Orders . | . . Ally Attacks . | . . Total Damage . | . . Kills . | . . Allies Corrupted . | . . Allies Melted . | . . Intel | -11 -10 ------- Run | Yrd Mat Active Infowar (turns) 221 | . 221 Seismic 221 | . 221 Robot Analysis Total . | . . Derelict Logs Recovered . | . . Drone Launches . | . . Drone Recoveries . | . . Exploration | -11 -10 ------------- Run | Yrd Mat Turns Passed 1203 | 80 1123 Spaces Moved 627 | 47 580 Core 2 | 1 1 Treads 605 | 26 579 Legs . | . . Wheels 20 | 20 . Hover . | . . Flight . | . . Fastest Speed 50 | 50 100 Average Speed 157 | 123 159 Slowest Speed 160 | 160 160 Overloaded Moves . | . . Propulsion Burnouts . | . . Robots Hopped . | . . Potential Cave-ins . | . . Cave-ins Triggered . | . . Exploration Rate (%) 43 | 4 82 Regions Visited 1 Branch Regions . Pre-discovered Areas . | . . Known Exits Taken . | . . Unknown Exits Taken 1 | 1 . Scrap Searched . | . . Spaces Dug . | . . Terrain Destroyed 33 | . 33 Melee . | . . Projectile . | . . AOE 33 | . 33 Terrain Rammed . | . . Walls Destroyed . | . . Machines Disabled . | . . Actions | -11 -10 --------- Run | Yrd Mat Total 758 | 70 688 Wait 19 | 7 12 Move 626 | 46 580 Hop . | . . Pick Up 21 | 9 12 Fast Attach . | . . Attach 15 | 5 10 Detach . | . . Swap 2 | 1 1 Drop 3 | 2 1 Fire 70 | . 70 Melee . | . . Ram . | . . Kick . | . . Crush 2 | . 2 Escape Stasis . | . . Rewire . | . . Trap . | . . Miscellaneous . | . . Route ------- -11/Scrapyard -10/Materials (discovered 3 exits: [*Mat x3]) History --------- Turn | Location | Event 14 | -11/Scrapyard | Discovered new exit (range 15) 81 | -11/Scrapyard | Entered Materials 304 | -10/Materials | Build established: Mutant 484 | -10/Materials | Lost 3 parts (1n2w) 581 | -10/Materials | Derelicts attacked the area 581 | -10/Materials | Discovered new exit (range 12) 603 | -10/Materials | Core integrity fell below 50% 620 | -10/Materials | Core integrity fell below 20% 1113 | -10/Materials | Discovered new exit (range 15) 1187 | -10/Materials | Discovered new exit (range 8) 1204 | -10/Materials | Destroyed by G-34 Mercenary with Small Laser Last Messages --------------- ALERT: Alarm triggered, dispatching investigation squad. G-34 Mercenary destroyed. U-05 Engineer lays Concrete. U-05 Engineer builds a Door. U-05 Engineer builds a Wall. U-05 Engineer lays Concrete. U-05 Engineer builds a Wall. U-05 Engineer lays Concrete. Acquired 38 matter. Acquired 37 matter. Acquired 24 matter. R-06 Scavenger collects Flight Unit. EXIT=FOUND T-07 Excavator is excavating. EXIT=FOUND Triggered Alarm Trap. An alarm sounds. ALERT: Alarm triggered, dispatching investigation squad. Map ----- +----------------------------------------------------+ | | | | | | | | | | | | | | | | | | | | | | | | | | | | | | | | | | | ?????????????????????????????????????????????????? | | ?????????????????????????????????????????????????? | | ?????????????????????????????????????????????????? | | ?????????????????????????????????????????????????? | | ?????????????????????????????????????????????????? | | ???????????#########??#####??????????????????????? | | ???????????# ###;#;######?????????????????? | | ???????????# ! g/ +?????????????????? | | ??????? ?# """# @ #?????????????????? | | ??????? ?# """# #?????????????????? | | ??????? + ""?# g #?????????????????? | | ??????? ?# ""?# #####; gg#?????????????????? | | ???????# ???? "??# #???? &% ; ??????????????? | | ???????# ??????????# #????# ####+##??????????? | | ???????? ??????????# #????# #?# ??????????? | | ???????? #?????????# #????# ### ##?????????? | | ???????? #?????????# #????# !** ## ##+### | | ???????# #?????????# #????# !** ## | | ???????# #?????????# #????# !* ## | | ???????? #?????????# #????# ## ##### | | ????????# #?????????# #????# ###+#######+ | | ????????# ########### # #??# # % | | ????????# #??# # """ """ | | ????????# ############# #??# # "Y" """"" | | ????????# #????????????##??######## # """"" | | ????????# #???????????????????????# # """"" | | ???????##+####????????????????##### # """ | | ???????# #????????????????#== # = | | ???????# #????????????????#== % ######+##### | | ???????# """ #????????????????#= %##### | | ???????# """ #????????????????#= | | ???????# """ #????????????????#== ### ##### % | | ???????# #????????????????#== #?# #??#####+### | +----------------------------------------------------+ Best States ------------- Heat Dissipation 25 Energy Generation 10 Energy Capacity 250 Matter Stores 300 Matter Capacity 300 Sight Range 16 Terrain Scan Density 10 Power Shielding 33 Evasion (%) 50 Recoil Reduction 2 Offensive Hacking 10 Item Schematics ----------------- None Robot Schematics ------------------ None Fabricated ------------ Nothing Repaired ---------- Nothing Studied --------- None Alien Tech Used ----------------- None Achievements -------------- DATA ERROR: Steam Global Achievement% For Emergencies Only Organ Harvest There's More Where That Came From Challenges ------------ None Game ------ Seed EtherialStorageBay Manual? 0 Play Time 00:17:13 Cumulative 10.6 hours Start 2026.01.16 @ 23:38:03 End 2026.01.17 @ 15:40:55 Sessions 1 Manual Loads 0 Difficulty Rogue Special Mode None Game No. 22 Rogue 22 Adventurer 0 Explorer 0 Win Type - Total 0 Types 0/0/0/0/0/0/0/0/0/0 Lore% 5 Gallery% 13 Achievement% 8 Wizard Run 0 Options --------- Layout 1 ASCII 0 Keyboard 0 Movement Mouse Keybinds 0 Fullscreen 1 Font 32/SmallcapsGlow Map View 50x35 Zoom Use 0% Tactical HUD 0 Map Filters NONE Filters NONE Steam 1 RUN: d9744072-85d0-4080-92ef-9e66acf8d41b